fUST/lending_fUST_20240518
["ID","MTS","AMOUNT","RATE_DAILY","PERIOD"]
[327320112,1715983841411,-500.0,0.00016438,2]
[327320113,1715983841422,-500.0,0.00016438,2]
[327320114,1715983841433,-500.0,0.00016438,2]
[327320115,1715983841443,-500.0,0.00016438,2]
[327320116,1715983841453,-500.0,0.00016438,2]
[327320117,1715983841462,-500.0,0.00016438,2]
[327320118,1715983841472,-500.0,0.00016438,2]
[327320119,1715983841482,-500.0,0.00016438,2]
[327320120,1715983841491,-580.86,0.00016438,2]
[327320121,1715983841501,-22124.81,0.00016438,2]
[327320122,1715983841510,-500.0,0.00016438,2]
[327320123,1715983841520,-500.0,0.00016438,2]
[327320124,1715983841530,-500.0,0.00016438,2]
[327320125,1715983841539,-5101.86,0.00016438,2]
[327320126,1715983841548,-500.0,0.00016438,2]
[327320127,1715983841558,-274.09997115,0.000165,2]
[327320128,1715983841568,-12703.0,0.000165,2]
[327320129,1715983841579,-157.554929,0.000165,2]
[327320130,1715983841589,-1084.816299,0.000165,2]
[327320131,1715983841599,-1084.816299,0.000165,2]
[327320132,1715983841608,-603.464091,0.000165,2]
[327320133,1715983841617,-166.867428,0.000165,2]
[327320134,1715983841626,-603.464091,0.000165,2]
[327320135,1715983841635,-166.867428,0.000165,2]
[327320136,1715983841645,-735.83054,0.000165,2]
[327320137,1715983841654,-151.0,0.000165,2]
[327320138,1715983841664,-735.83054,0.000165,2]
[327320139,1715983841676,-151.0,0.000165,2]
[327320140,1715983841686,-151.0,0.000165,2]
[327320141,1715983841696,-373.9581405,0.00016542,2]
[327320142,1715983841706,-212.0,0.000166,2]
[327320143,1715983841716,-225.2,0.00016662,2]
[327320144,1715983841725,-225.2,0.00016662,3]
[327320145,1715983841737,-500.0,0.00016712,2]
[327320146,1715983841748,-500.0,0.00016712,2]
[327320147,1715983841759,-500.0,0.00016712,2]
[327320148,1715983841770,-500.0,0.00016712,2]
[327320149,1715983841780,-500.0,0.00016712,2]
[327320150,1715983841789,-500.0,0.00016712,2]
[327320151,1715983841800,-500.0,0.00016712,2]
[327320152,1715983841812,-500.0,0.00016712,2]
[327320153,1715983841823,-500.0,0.00016712,2]
[327320154,1715983841832,-500.0,0.00016712,2]
[327320155,1715983841842,-500.0,0.00016712,4]
[327320156,1715983841853,-500.0,0.00016712,2]
[327320157,1715983841864,-500.0,0.00016712,2]
[327320158,1715983841875,-500.0,0.00016712,2]
[327320159,1715983841886,-500.0,0.00016712,2]
[327320160,1715983841901,-500.0,0.00016712,2]
[327320161,1715983841910,-500.0,0.00016712,2]
[327320162,1715983841920,-151.0,0.00016712,2]
[327320163,1715983841930,-500.0,0.00016712,2]
[327320164,1715983841940,-500.0,0.00016712,2]
[327320165,1715983841950,-500.0,0.00016712,2]
[327320166,1715983841960,-187.27048126,0.00016712,2]
[327320167,1715983841970,-151.0,0.00016712,2]
[327320168,1715983841983,-500.0,0.00016712,2]
[327320169,1715983841994,-169.17639,0.00016712,2]
[327320170,1715983842004,-500.0,0.00016712,2]
[327320171,1715983842013,-500.0,0.00016712,2]
[327320172,1715983842022,-151.0,0.00016712,2]
[327320173,1715983842031,-151.0,0.00016712,2]
[327320174,1715983842042,-151.0,0.00016712,2]
[327320175,1715983842053,-500.0,0.00016712,2]
[327320176,1715983842063,-554.398779,0.00016712,2]
[327320177,1715983842073,-554.398779,0.00016712,2]
[327320178,1715983842082,-155.58002828,0.00016712,2]
[327320179,1715983842092,-500.0,0.00016712,2]
[327320180,1715983842102,-500.0,0.00016712,2]
[327320181,1715983842112,-500.0,0.00016712,2]
[327320182,1715983842124,-151.0,0.00016712,2]
[327320183,1715983842135,-500.0,0.00016712,2]
[327320184,1715983842145,-288.49096864,0.00016712,2]
[327320185,1715983842154,-500.0,0.00016712,2]
[327320186,1715983842165,-500.0,0.00016712,2]
[327320187,1715983842173,-500.0,0.00016712,2]
[327320188,1715983842183,-500.0,0.00016712,2]
[327320189,1715983842191,-151.0,0.00016712,2]
[327320190,1715983842200,-500.0,0.00016712,2]
[327320191,1715983842210,-500.0,0.00016712,2]
[327320192,1715983842219,-151.0,0.00016712,2]
[327320193,1715983842227,-151.0,0.00016712,2]
[327320194,1715983842236,-151.0,0.00016712,2]
[327320195,1715983842246,-151.0,0.00016712,2]
[327320196,1715983842256,-151.0,0.00016712,2]
[327320197,1715983842265,-500.0,0.00016712,2]
[327320198,1715983842274,-500.0,0.00016712,2]
[327320199,1715983842284,-500.0,0.00016712,2]
[327320200,1715983842293,-500.0,0.00016712,2]
[327320201,1715983842302,-505.83413611,0.00016712,2]
[327320202,1715983842312,-500.0,0.00016712,2]
[327320203,1715983842321,-500.0,0.00016712,2]
[327320204,1715983842330,-500.0,0.00016712,2]
[327320205,1715983842339,-500.0,0.00016712,2]
[327320206,1715983842349,-500.0,0.00016712,2]
[327320207,1715983842359,-500.0,0.00016712,2]
[327320208,1715983842368,-500.0,0.00016712,2]
[327320209,1715983842378,-582.49458125,0.00016712,2]
[327320210,1715983842387,-500.0,0.00016712,2]
[327320211,1715983842396,-3825.85,0.00016712,2]
[327320212,1715983842406,-2983.16,0.00016712,2]
[327320213,1715983842415,-151.0,0.00016712,2]
[327320214,1715983842424,-6668.47,0.00016712,2]
[327320215,1715983842433,-500.0,0.00016712,2]
[327320216,1715983842442,-234.99,0.00016712,2]
[327320217,1715983842452,-447.11207066,0.00016712,2]
[327320218,1715983842461,-539.83,0.00016712,2]
[327320219,1715983842470,-500.0,0.00016712,2]
[327320220,1715983842479,-500.0,0.00016712,2]
[327320221,1715983842488,-3566.81,0.00016712,2]
[327320222,1715983842498,-500.0,0.00016712,2]
[327320223,1715983842507,-151.0,0.00016712,2]
[327320224,1715983842516,-500.0,0.00016712,2]
[327320225,1715983842526,-500.0,0.00016712,2]
[327320226,1715983842535,-151.0,0.00016712,2]
[327320227,1715983842544,-500.0,0.00016712,2]
[327320228,1715983842553,-500.0,0.00016712,2]
[327320229,1715983842562,-500.0,0.00016712,2]
[327320230,1715983842571,-500.0,0.00016712,2]
[327320231,1715983842580,-500.0,0.00016712,2]
[327320232,1715983842590,-500.0,0.00016712,2]
[327320233,1715983842599,-500.0,0.00016712,2]
[327320234,1715983842608,-1204.29,0.00016712,2]
[327320235,1715983842617,-1127.934111,0.00016712,2]
[327320237,1715983842626,-1127.934111,0.00016712,2]
[327320238,1715983842635,-500.0,0.00016712,2]
[327320239,1715983842645,-530.71,0.00016712,2]
[327320240,1715983842654,-617.48,0.00016712,2]
[327320241,1715983842664,-770.12,0.00016712,2]
[327320242,1715983842674,-1084.816299,0.00016712,2]
[327320243,1715983842684,-1084.816299,0.00016712,2]
[327320244,1715983842695,-500.0,0.00016712,2]
[327320245,1715983842705,-151.0,0.00016712,2]
[327320246,1715983842716,-500.0,0.00016712,2]
[327320247,1715983842728,-500.0,0.00016712,2]
[327320248,1715983842739,-151.0,0.00016712,2]
[327320249,1715983842748,-500.0,0.00016712,2]
[327320250,1715983842758,-500.0,0.00016712,2]
[327320251,1715983842768,-500.0,0.00016712,2]
[327320252,1715983842779,-151.0,0.00016712,2]
[327320253,1715983842789,-300.554505,0.00016712,2]
[327320254,1715983842800,-500.0,0.00016712,2]
[327320255,1715983842810,-300.554505,0.00016712,2]
[327320256,1715983842819,-578.18,0.00016712,2]
[327320257,1715983842828,-500.0,0.00016712,2]
[327320258,1715983842838,-648.45,0.00016712,2]
[327320259,1715983842848,-739.16,0.00016712,2]
[327320260,1715983842857,-186.99286724,0.00016712,2]
[327320261,1715983842867,-5798.53,0.00016712,2]
[327320262,1715983842876,-1051.26,0.00016712,2]
[327320263,1715983842885,-500.0,0.00016712,2]
[327320264,1715983842898,-603.464091,0.00016712,2]
[327320265,1715983842907,-166.867428,0.00016712,2]
[327320266,1715983842917,-526.52,0.00016712,2]
[327320267,1715983842926,-500.0,0.00016712,2]
[327320268,1715983842941,-500.0,0.00016712,2]
[327320269,1715983842950,-603.464091,0.00016712,2]
[327320270,1715983842959,-166.867428,0.00016712,2]
[327320271,1715983842970,-735.83054,0.00016712,2]
[327320272,1715983842979,-428.28,0.00016712,2]
[327320274,1715983842989,-500.0,0.00016712,2]
[327320276,1715983842999,-151.0,0.00016712,2]
[327320277,1715983843008,-735.83054,0.00016712,2]
[327320278,1715983843017,-500.0,0.00016712,2]
[327320279,1715983843027,-500.0,0.00016712,2]
[327320280,1715983843036,-500.0,0.00016712,2]
[327320281,1715983843045,-447.75220669,0.00016712,2]
[327320282,1715983843054,-500.0,0.00016712,2]
[327320283,1715983843064,-500.0,0.00016712,2]
[327320284,1715983843074,-500.0,0.00016712,2]
[327320285,1715983843084,-159.8,0.00016712,2]
[327320286,1715983843094,-500.0,0.00016712,2]
[327320287,1715983843103,-580.86,0.00016712,2]
[327320288,1715983843112,-151.0,0.00016712,2]
[327320289,1715983843122,-22124.81,0.00016712,2]
[327320290,1715983843132,-151.0,0.00016712,2]
[327320291,1715983843142,-5101.86,0.00016712,2]
[327320292,1715983843151,-500.0,0.00016712,2]
[327320293,1715983843161,-151.0,0.00016878,2]
[327320296,1715983843274,-500.0,0.00016986,2]
[327320297,1715983843284,-344.91685889,0.00016986,2]
[327320298,1715983843294,-500.0,0.00016986,2]
[327320299,1715983843304,-151.0,0.00016986,2]
[327320300,1715983843314,-151.0,0.00016986,2]
[327320301,1715983843324,-500.0,0.00016986,2]
[327320302,1715983843334,-385.99,0.00016986,2]
[327320303,1715983843344,-500.0,0.00016986,4]
[327320304,1715983843353,-151.0,0.00016986,2]
[327320305,1715983843363,-563.44,0.00016986,2]
[327320306,1715983843373,-151.0,0.00016986,2]
[327320307,1715983843383,-471.4,0.00016986,2]
[327320308,1715983843393,-151.0,0.00016986,2]
[327320309,1715983843403,-500.0,0.00016986,2]
[327320310,1715983843413,-500.0,0.00016986,2]
[327320311,1715983843422,-151.0,0.00016986,2]
[327320312,1715983843432,-151.0,0.00016986,2]
[327320313,1715983843441,-500.0,0.00016986,2]
[327320314,1715983843452,-554.398779,0.00016986,2]
[327320315,1715983843461,-554.398779,0.00016986,2]
[327320316,1715983843470,-500.0,0.00016986,2]
[327320317,1715983843480,-500.0,0.00016986,2]
[327320318,1715983843489,-500.0,0.00016986,2]
[327320319,1715983843499,-151.0,0.00016986,2]
[327320320,1715983843508,-500.0,0.00016986,2]
[327320321,1715983843517,-500.0,0.00016986,2]
[327320322,1715983843527,-316.4,0.00016986,2]
[327320323,1715983843536,-151.0,0.00016986,2]
[327320324,1715983843545,-306.43,0.00016986,2]
[327320325,1715983843554,-151.0,0.00016986,2]
[327320326,1715983843564,-151.0,0.00016986,2]
[327320327,1715983843574,-151.0,0.00016986,2]
[327320328,1715983843583,-151.0,0.00016986,2]
[327320329,1715983843592,-151.0,0.00016986,2]
[327320330,1715983843601,-169.571856,0.00016986,2]
[327320331,1715983843610,-169.571856,0.00016986,2]
[327320332,1715983843619,-500.0,0.00016986,2]
[327320333,1715983843628,-500.0,0.00016986,2]
[327320334,1715983843637,-500.0,0.00016986,2]
[327320335,1715983843646,-151.0,0.00016986,2]
[327320336,1715983843656,-151.0,0.00016986,2]
[327320337,1715983843665,-208.892644,0.00016986,2]
[327320338,1715983843675,-500.0,0.00016986,2]
[327320339,1715983843684,-151.0,0.00016986,2]
[327320340,1715983843694,-208.892644,0.00016986,2]
[327320341,1715983843703,-3825.85,0.00016986,2]
[327320342,1715983843713,-411.75866144,0.00016986,2]
[327320344,1715983843835,-1296.1,0.00016986,2]
[327320346,1715983844572,-500.0,0.00016438,2]
[327320347,1715983844583,-150.0,0.00016662,3]
[327320348,1715983844593,-150.0,0.00016662,2]
[327320349,1715983844603,-320.377052,0.00016712,2]
[327320350,1715983844613,-659.4151154,0.00016712,2]
[327320351,1715983844624,-151.0,0.00016986,2]
[327320352,1715983844633,-5738.12128996,0.00016986,2]
[327320355,1715983846226,-991.09066611,0.00016437,2]
[327320356,1715984252592,-230.7699921,9.991e-05,2]
[327320357,1715984252624,-395.27135624,9.992e-05,2]
[327320358,1715984252657,-186.86508832,9.992e-05,2]
[327320359,1715984252677,-230.7699921,9.993e-05,2]
[327320360,1715984252689,-395.27135624,9.993e-05,2]
[327320361,1715984252709,-186.86508832,9.993e-05,2]
[327320362,1715984252726,-568.18712668,9.993e-05,2]
[327320363,1715984834171,-1897.3147211,9.989e-05,2]
[327320364,1715984834191,-1988.25746613,9.989e-05,2]
[327320365,1715984952246,-164.10523627,0.00013993,2]
[327320366,1715984952278,-9558.14823448,0.00014092,2]
[327320367,1715984952306,-996.84590039,0.00014094,2]
[327320368,1715984952336,-621.5518692,0.00014094,2]
[327320369,1715984952365,-817.80441059,0.00014095,2]
[327320370,1715984952395,-19837.54427497,0.00014095,2]
[327320371,1715984952428,-24648.89799575,0.00014096,2]
[327320372,1715984964114,-3390.5117,0.00014091,2]
[327320373,1715984964135,-251.10200425,0.00014096,2]
[327320374,1715984964155,-1031.7811763,0.000149,2]
[327320375,1715984964175,-2107.25657902,0.00015,2]
[327320376,1715984964195,-942.40757179,0.00015,2]
[327320377,1715984964219,-1148.90229176,0.00015,2]
[327320378,1715984964239,-5946.33203919,0.00015,2]
[327320387,1715985014081,10642.49134336,0.00014618,2]
[327320401,1715985032300,-3390.5117,0.00014617,2]
[327320402,1715985032309,-14257.50865664,0.00014618,2]
[327320403,1715985032319,-3585.7911637,0.00014999,2]
[327320404,1715985032328,-74053.66796081,0.00015,2]
[327320405,1715985032338,-942.40757179,0.00015,2]
[327320406,1715985032347,-2107.25657902,0.00015,2]
[327320407,1715985032355,-1148.90229176,0.00015,2]
[327320408,1715985032364,-378.35323076,0.00015064,2]
[327320409,1715985032374,-154.9224646,0.00015164,2]
[327320410,1715985032383,-2400.26192892,0.00015164,2]
[327320411,1715985032392,-212.08344327,0.00015164,2]
[327320412,1715985032401,-186.45900731,0.00015164,2]
[327320413,1715985032410,-287.8014407,0.00015164,2]
[327320414,1715985032419,-380.82466496,0.00015164,2]
[327320415,1715985032428,-1449.90572658,0.00015164,2]
[327320416,1715985032437,-286.3624082,0.00015165,2]
[327320417,1715985032446,-378.35323072,0.00015401,2]
[327320418,1715985032455,-378.35323072,0.00015737,2]
[327320419,1715985032466,-297.25726222,0.00016,2]
[327320420,1715985032476,-7966.29275223,0.00016,2]
[327320421,1715985032486,-378.35323072,0.00016074,2]
[327320422,1715985032496,-2000.0,0.00016338,2]
[327320423,1715985032508,-5708.99283825,0.00016338,2]
[327320463,1715985038414,-258.75359852,0.00016338,2]
[327320465,1715985038426,-78486.26994761,0.00016338,2]
[327320467,1715985038436,-378.35323072,0.0001641,2]
[327320469,1715985038445,-392.14033378,0.00016434,2]
[327320471,1715985038455,-913.27901909,0.00016434,2]
[327320473,1715985038464,-309.38122828,0.00016434,2]
[327320475,1715985038474,-156.47600208,0.00016434,2]
[327320477,1715985038483,-200.4861282,0.00016434,2]
[327320479,1715985038492,-2149.0864058,0.00016434,2]
[327320481,1715985038502,-309.38126526,0.00016434,2]
[327320483,1715985038511,-200.47699334,0.00016434,2]
[327320485,1715985038521,-154.81268098,0.00016434,2]
[327320487,1715985038532,-267.07392403,0.00016434,2]
[327320489,1715985038541,-307.05250272,0.00016434,2]
[327320491,1715985038551,-158.50584732,0.00016434,2]
[327320493,1715985038560,-155.17992662,0.00016435,2]
[327320495,1715985038570,-5442.62171369,0.00016435,2]
[327320497,1715985038579,-4166.95009283,0.00016435,2]
[327320499,1715985038588,-1681.89915885,0.00016437,2]
[327320501,1715985038598,-6988.31162125,0.00016438,3]
[327320503,1715985038607,-500.0,0.00016438,2]
[327320505,1715985038617,-500.0,0.00016438,2]
[327320507,1715985038626,-502.20593887,0.00016438,2]
[327320509,1715985038636,-500.0,0.00016438,2]
[327320511,1715985038645,-500.94154903,0.00016438,2]
[327320513,1715985038655,-500.0,0.00016438,2]
[327320515,1715985038664,-500.0,0.00016438,2]
[327320517,1715985038673,-500.0,0.00016438,2]
[327320519,1715985038683,-500.0,0.00016438,2]
[327320521,1715985038694,-502.09119767,0.00016438,2]
[327320523,1715985038704,-500.0,0.00016438,2]
[327320525,1715985038713,-471.4,0.00016438,2]
[327320527,1715985038723,-238.01232678,0.00016438,2]
[327320529,1715985038732,-500.0,0.00016438,2]
[327320531,1715985038741,-247.51575734,0.00016438,2]
[327320533,1715985038751,-246.07250585,0.00016438,2]
[327320535,1715985038760,-500.0,0.00016438,2]
[327320537,1715985038769,-500.0,0.00016438,2]
[327320539,1715985038779,-500.0,0.00016438,2]
[327320541,1715985038789,-500.0,0.00016438,2]
[327320557,1715985038931,-500.0,0.00016438,2]
[327320559,1715985038940,-500.0,0.00016438,2]
[327320561,1715985038950,-511.18991099,0.00016438,2]
[327320563,1715985038959,-151.0,0.00016438,2]
[327320565,1715985038968,-500.0,0.00016438,2]
[327320567,1715985038978,-435.15603588,0.00016438,2]
[327320569,1715985038987,-544.46,0.00016438,2]
[327320571,1715985038996,-500.0,0.00016438,2]
[327320573,1715985039005,-500.0,0.00016438,2]
[327320575,1715985039014,-500.0,0.00016438,2]
[327320577,1715985039023,-500.0,0.00016438,2]
[327320579,1715985039032,-500.0,0.00016438,2]
[327320581,1715985039042,-500.0,0.00016438,2]
[327320583,1715985039051,-500.0,0.00016438,2]
[327320585,1715985039060,-500.0,0.00016438,2]
[327320587,1715985039070,-500.0,0.00016438,2]
[327320589,1715985039079,-500.0,0.00016438,2]
[327320591,1715985039088,-500.0,0.00016438,2]
[327320593,1715985039098,-500.0,0.00016438,2]
[327320595,1715985039107,-500.0,0.00016438,2]
[327320597,1715985039117,-500.0,0.00016438,2]
[327320599,1715985039126,-500.0,0.00016438,2]
[327320601,1715985039135,-500.0,0.00016438,2]
[327320603,1715985039146,-500.0,0.00016438,2]
[327320605,1715985039156,-528.37195546,0.00016438,2]
[327320607,1715985039165,-500.0,0.00016438,2]
[327320609,1715985039175,-500.0,0.00016438,2]
[327320611,1715985039184,-500.0,0.00016438,2]
[327320613,1715985039194,-500.0,0.00016438,2]
[327320615,1715985039203,-500.0,0.00016438,2]
[327320617,1715985039213,-500.0,0.00016438,2]
[327320619,1715985039222,-500.0,0.00016438,2]
[327320621,1715985039232,-500.0,0.00016438,2]
[327320623,1715985039241,-500.0,0.00016438,2]
[327320625,1715985039251,-500.0,0.00016438,2]
[327320627,1715985039261,-500.0,0.00016438,2]
[327320629,1715985039271,-617.48,0.00016438,2]
[327320631,1715985039282,-531.34110359,0.00016438,2]
[327320633,1715985039292,-500.0,0.00016438,2]
[327320635,1715985039303,-500.0,0.00016438,2]
[327320638,1715985039314,-500.0,0.00016438,2]
[327320639,1715985039324,-500.0,0.00016438,2]
[327320641,1715985039334,-619.94628701,0.00016438,2]
[327320644,1715985039344,-530.42059546,0.00016438,2]
[327320646,1715985039355,-500.0,0.00016438,2]
[327320648,1715985039364,-500.0,0.00016438,2]
[327320650,1715985039374,-500.0,0.00016438,2]
[327320652,1715985039383,-505.14416001,0.00016438,2]
[327320654,1715985039392,-504.61244209,0.00016438,2]
[327320656,1715985039402,-500.66826848,0.00016438,2]
[327320657,1715985039412,-500.0,0.00016438,2]
[327320660,1715985039429,-500.0,0.00016438,2]
[327320663,1715985039443,-500.0,0.00016438,2]
[327320665,1715985039453,-504.96722018,0.00016438,2]
[327320667,1715985039468,-500.0,0.00016438,2]
[327320669,1715985039478,-500.0,0.00016438,2]
[327320671,1715985039488,-500.0,0.00016438,2]
[327320673,1715985039500,-500.0,0.00016438,2]
[327320675,1715985039511,-500.0,0.00016438,2]
[327320678,1715985039522,-500.0,0.00016438,2]
[327320680,1715985039533,-500.0,0.00016438,2]
[327320682,1715985039545,-500.0,0.00016438,2]
[327320684,1715985039555,-500.0,0.00016438,2]
[327320686,1715985039565,-500.0,0.00016438,2]
[327320688,1715985039575,-500.0,0.00016438,2]
[327320690,1715985039585,-500.0,0.00016438,2]
[327320692,1715985039596,-500.0,0.00016438,2]
[327320694,1715985039607,-500.0,0.00016438,2]
[327320696,1715985039617,-500.0,0.00016438,2]
[327320698,1715985039628,-500.0,0.00016438,2]
[327320700,1715985039638,-500.0,0.00016438,2]
[327320702,1715985039648,-500.0,0.00016438,2]
[327320704,1715985039658,-500.0,0.00016438,2]
[327320706,1715985039668,-500.0,0.00016438,2]
[327320708,1715985039678,-500.0,0.00016438,2]
[327320710,1715985039689,-500.0,0.00016438,2]
[327320712,1715985039700,-500.0,0.00016438,2]
[327320714,1715985039711,-502.55962726,0.00016438,2]
[327320716,1715985039721,-500.0,0.00016438,2]
[327320718,1715985039731,-505.83413611,0.00016438,2]
[327320720,1715985039741,-500.0,0.00016438,2]
[327320722,1715985039751,-153.49150854,0.00016438,2]
[327320724,1715985039762,-500.0,0.00016438,2]
[327320726,1715985039772,-500.0,0.00016438,2]
[327320729,1715985039784,-500.0,0.00016438,2]
[327320730,1715985039794,-294.30194895,0.00016438,2]
[327320731,1715985039805,-500.0,0.00016438,2]
[327320732,1715985039816,-500.0,0.00016438,2]
[327320733,1715985039827,-500.0,0.00016438,2]
[327320734,1715985039838,-500.0,0.00016438,2]
[327320735,1715985039849,-500.0,0.00016438,2]
[327320736,1715985039859,-500.0,0.00016438,2]
[327320737,1715985039870,-500.0,0.00016438,2]
[327320738,1715985039880,-500.0,0.00016438,2]
[327320739,1715985039891,-500.0,0.00016438,2]
[327320741,1715985039902,-500.0,0.00016438,2]
[327320743,1715985039912,-500.0,0.00016438,2]
[327320744,1715985039922,-500.0,0.00016438,2]
[327320745,1715985039932,-500.0,0.00016438,2]
[327320746,1715985039941,-500.0,0.00016438,2]
[327320747,1715985039949,-500.0,0.00016438,2]
[327320749,1715985039957,-515.91624839,0.00016438,2]
[327320751,1715985039965,-500.0,0.00016438,2]
[327320753,1715985039974,-5101.86,0.00016438,2]
[327320755,1715985039983,-500.0,0.00016438,2]
[327320757,1715985039991,-500.0,0.00016438,2]
[327320759,1715985040000,-500.0,0.00016438,2]
[327320761,1715985040009,-500.0,0.00016438,2]
[327320764,1715985040018,-500.0,0.00016438,2]
[327320767,1715985040027,-500.0,0.00016438,2]
[327320770,1715985040036,-500.0,0.00016438,2]
[327320772,1715985040045,-563.83042221,0.00016438,2]
[327320774,1715985040055,-500.0,0.00016438,2]
[327320776,1715985040066,-500.0,0.00016438,2]
[327320778,1715985040075,-500.0,0.00016438,2]
[327320780,1715985040085,-500.0,0.00016438,2]
[327320782,1715985040095,-2804.86,0.00016438,2]
[327320784,1715985040105,-500.71646111,0.00016438,2]
[327320786,1715985040115,-3435.04,0.00016438,2]
[327320788,1715985040125,-500.0,0.00016438,2]
[327320790,1715985040135,-500.0,0.00016438,2]
[327320792,1715985040145,-500.0,0.00016438,2]
[327320794,1715985040155,-582.49458125,0.00016438,2]
[327320796,1715985040165,-500.0,0.00016438,2]
[327320798,1715985040175,-501.61020986,0.00016438,2]
[327320800,1715985040186,-3705.85,0.00016438,2]
[327320802,1715985040195,-500.91356822,0.00016438,2]
[327320804,1715985040205,-500.0,0.00016438,2]
[327320806,1715985040215,-234.99,0.00016438,2]
[327320808,1715985040225,-5377.26308207,0.00016438,2]
[327320829,1715985040422,-615.11073807,0.00016438,2]
[327321045,1715985043462,-159.15617986,0.00016438,2]
[327321046,1715985043474,-139.55280241,0.00016438,4]
[327321062,1715985046445,-107.175881,0.00016338,2]
[327321064,1715985949137,-194.42788305,9.971e-05,2]
[327321065,1715985949156,-1.04644774,9.972e-05,2]
[327321076,1715986151112,-284.99869591,9.285e-05,2]
[327321077,1715986151139,-397.4241624,9.285e-05,2]
[327321078,1715986151160,-1043.11503847,9.286e-05,2]
[327321079,1715986151181,-330.9155996,9.286e-05,2]
[327321080,1715986151205,-2114.19374467,9.286e-05,2]
[327321081,1715986151230,-13120.09852128,9.287e-05,2]
[327321082,1715986154127,-207.2885943,9.284e-05,2]
[327321083,1715986154173,-11779.90147872,9.287e-05,2]
[327321084,1715986154230,-154.70605849,9.96e-05,2]
[327321085,1715986154316,-154.70605849,9.961e-05,2]
[327321086,1715986154358,-2171.00352253,9.962e-05,2]
[327321087,1715986154379,-1538.53360861,9.974e-05,2]
[327321088,1715986154400,-8146.59850288,9.999e-05,2]
[327321089,1715986154437,-154.84515485,0.00010796,2]
[327321090,1715986154458,-4166.95009283,0.00010796,2]
[327321091,1715986154478,-5442.62171369,0.00010796,2]
[327321092,1715986154498,-309.38126526,0.00010796,2]
[327321093,1715986154516,-200.47699334,0.00010796,2]
[327321094,1715986154536,-155.17992662,0.00010796,2]
[327321095,1715986154556,-307.05250272,0.00010796,2]
[327321096,1715986154576,-154.81268098,0.00010796,2]
[327321097,1715986154596,-158.50584732,0.00010796,2]
[327321098,1715986154615,-309.38122828,0.00010796,2]
[327321099,1715986154634,-2149.0864058,0.00010796,2]
[327321100,1715986154653,-200.4861282,0.00010796,2]
[327321101,1715986154672,-156.47600208,0.00010796,2]
[327321102,1715986154692,-194.38793581,0.00010796,2]
[327321103,1715986154710,-155.46832006,0.00010796,2]
[327321104,1715986154729,-429.00726079,0.00010796,2]
[327321105,1715986154748,-209.90249857,0.00010796,2]
[327321106,1715986154767,-835.37838863,0.00010796,2]
[327321107,1715986154787,-1003.61930091,0.00010797,2]
[327321108,1715986154807,-866.45229687,0.00010797,2]
[327321109,1715986154827,-1318.64338499,0.000129,2]
[327321110,1715986154860,-3390.5117,0.00014,2]
[327321118,1715986162571,1819.51446963,9.285e-05,2]
[327321119,1715986162927,1040.97399679,9.999e-05,2]
[327321129,1715986225449,719.86717686,9.999e-05,2]
[327321169,1715986232636,-65.25327538,0.000149,2]
[327321215,1715986238736,-154.70605849,0.00014899,2]
[327321217,1715986238746,-107.1985792,0.000149,2]
[327321219,1715986238755,-3390.5117,0.00014997,2]